fUST/lending_fUST_20250616
["ID","MTS","AMOUNT","RATE_DAILY","PERIOD"]
[366107701,1750067443946,-442.41300366,0.00022465,4]
[366107703,1750067443955,-223.76340779,0.00022465,4]
[366107705,1750067443965,-264.61606098,0.00022465,4]
[366107707,1750067443974,-460.0,0.00022465,4]
[366107709,1750067443984,-430.0,0.00022465,4]
[366107711,1750067443994,-295.19901499,0.00022465,4]
[366107713,1750067444003,-460.0,0.00022465,4]
[366107715,1750067444013,-460.0,0.00022465,4]
[366107717,1750067444023,-440.0,0.00022465,4]
[366107720,1750067444039,-460.0,0.00022465,4]
[366107722,1750067444049,-460.0,0.00022465,4]
[366107724,1750067444058,-460.0,0.00022465,4]
[366107726,1750067444068,-460.0,0.00022465,4]
[366107728,1750067444082,-502.47385473,0.00022465,4]
[366107730,1750067444092,-460.0,0.00022465,4]
[366107732,1750067444102,-460.0,0.00022465,4]
[366107734,1750067444112,-460.0,0.00022465,4]
[366107736,1750067444123,-240.377342,0.00022465,7]
[366107738,1750067444132,-460.0,0.00022465,4]
[366107740,1750067444142,-460.0,0.00022465,4]
[366107742,1750067444152,-590.65,0.00022465,2]
[366107744,1750067444161,-460.0,0.00022465,4]
[366107746,1750067444171,-460.0,0.00022465,4]
[366107748,1750067444180,-460.0,0.00022465,4]
[366107750,1750067444189,-460.0,0.00022465,4]
[366107752,1750067444199,-181.04052881,0.00022465,4]
[366107754,1750067444209,-420.0,0.00022465,4]
[366107756,1750067444218,-444.12366532,0.00022465,4]
[366107758,1750067444228,-460.0,0.00022465,4]
[366107760,1750067444238,-465.63253903,0.00022465,4]
[366107762,1750067444247,-460.0,0.00022465,4]
[366107764,1750067444257,-460.0,0.00022465,4]
[366107766,1750067444267,-405.0,0.00022465,4]
[366107768,1750067444276,-460.0,0.00022465,4]
[366107770,1750067444286,-460.0,0.00022465,4]
[366107772,1750067444295,-460.0,0.00022465,4]
[366107774,1750067444305,-528.09607589,0.00022465,4]
[366107776,1750067444314,-447.97478659,0.00022465,4]
[366107778,1750067444323,-460.0,0.00022465,4]
[366107780,1750067444333,-460.0,0.00022465,4]
[366107782,1750067444343,-460.0,0.00022465,4]
[366107784,1750067444352,-539.76110086,0.00022465,4]
[366107786,1750067444362,-205.29681802,0.00022465,4]
[366107788,1750067444372,-460.0,0.00022465,4]
[366107790,1750067444382,-460.0,0.00022465,4]
[366107792,1750067444391,-1171.34,0.00022465,4]
[366107794,1750067444402,-438.11674702,0.00022465,4]
[366107796,1750067444413,-460.0,0.00022465,4]
[366107798,1750067444423,-460.0,0.00022465,4]
[366107800,1750067444433,-386.60299656,0.00022465,4]
[366107802,1750067444442,-460.0,0.00022465,4]
[366107804,1750067444452,-460.0,0.00022465,4]
[366107806,1750067444461,-255.88008586,0.00022465,4]
[366107808,1750067444471,-460.0,0.00022465,4]
[366107810,1750067444481,-460.0,0.00022465,4]
[366107812,1750067444490,-460.0,0.00022465,4]
[366107813,1750067444499,-660.81,0.00022465,4]
[366107814,1750067444509,-535.51112876,0.00022465,4]
[366107815,1750067444518,-977.33,0.00022465,4]
[366107816,1750067444528,-460.0,0.00022465,4]
[366107817,1750067444541,-760.03,0.00022465,4]
[366107818,1750067444550,-1108.41,0.00022465,4]
[366107819,1750067444560,-460.0,0.00022465,4]
[366107820,1750067444570,-460.0,0.00022465,4]
[366107821,1750067444579,-460.0,0.00022465,4]
[366107822,1750067444589,-460.0,0.00022465,4]
[366107823,1750067444598,-460.0,0.00022465,4]
[366107824,1750067444608,-460.0,0.00022465,4]
[366107825,1750067444617,-460.0,0.00022465,4]
[366107826,1750067444627,-460.0,0.00022465,4]
[366107827,1750067444637,-460.0,0.00022465,4]
[366107828,1750067444646,-558.52,0.00022465,4]
[366107829,1750067444656,-460.0,0.00022465,4]
[366107830,1750067444665,-460.0,0.00022465,4]
[366107831,1750067444675,-460.0,0.00022465,4]
[366107832,1750067444685,-504.31189285,0.00022465,4]
[366107833,1750067444695,-460.0,0.00022465,4]
[366107834,1750067444705,-460.0,0.00022465,4]
[366107835,1750067444714,-460.0,0.00022465,4]
[366107836,1750067444724,-460.0,0.00022465,4]
[366107837,1750067444733,-460.0,0.00022465,4]
[366107838,1750067444742,-460.0,0.00022465,4]
[366107839,1750067444752,-410.0,0.00022465,4]
[366107840,1750067444761,-490.54,0.00022465,4]
[366107841,1750067444771,-460.0,0.00022465,4]
[366107842,1750067444781,-293.389818,0.00022465,7]
[366107843,1750067444792,-151.0,0.00022465,7]
[366107844,1750067444802,-408.36725475,0.00022465,4]
[366107845,1750067444812,-460.0,0.00022465,4]
[366107846,1750067444821,-293.389818,0.00022465,7]
[366107847,1750067444831,-466.98698619,0.00022465,4]
[366107848,1750067444840,-460.0,0.00022465,4]
[366107849,1750067444850,-410.0,0.00022465,4]
[366107850,1750067444860,-460.0,0.00022465,4]
[366107851,1750067444870,-460.0,0.00022465,4]
[366107852,1750067444880,-460.0,0.00022465,4]
[366107853,1750067444891,-460.0,0.00022465,4]
[366107854,1750067444901,-460.0,0.00022465,4]
[366107855,1750067444910,-442.532581,0.00022465,4]
[366107856,1750067444920,-460.0,0.00022465,4]
[366107857,1750067444930,-435.97711818,0.00022465,4]
[366107858,1750067445092,-24.02288182,0.00022465,4]
[366107859,1750067445102,-275.72868,0.00022465,7]
[366107860,1750067445113,-430.0,0.00022465,4]
[366107861,1750067445122,-460.0,0.00022465,4]
[366107862,1750067445131,-460.0,0.00022465,4]
[366107863,1750067445141,-460.0,0.00022465,4]
[366107864,1750067445150,-460.0,0.00022465,4]
[366107865,1750067445160,-275.72868,0.00022465,7]
[366107866,1750067445170,-460.0,0.00022465,4]
[366107867,1750067445180,-460.0,0.00022465,4]
[366107868,1750067445190,-460.0,0.00022465,4]
[366107869,1750067445199,-121.31519068,0.00022465,4]
[366107870,1750067445257,500.0,0.00025031,120]
[366107871,1750067445457,-338.68480932,0.00022465,4]
[366107872,1750067445467,-460.0,0.00022465,4]
[366107873,1750067445477,-460.0,0.00022465,4]
[366107874,1750067445487,-460.0,0.00022465,4]
[366107875,1750067445497,-460.0,0.00022465,4]
[366107876,1750067445506,-460.0,0.00022465,4]
[366107877,1750067445516,-460.0,0.00022465,4]
[366107878,1750067445526,-460.0,0.00022465,4]
[366107879,1750067445536,-460.0,0.00022465,4]
[366107880,1750067445545,-460.0,0.00022465,4]
[366107881,1750067445555,-460.0,0.00022465,4]
[366107882,1750067445564,-395.74139832,0.00022465,4]
[366107883,1750067445574,-397.05482775,0.00022465,4]
[366107884,1750067445584,-460.0,0.00022465,4]
[366107885,1750067445593,-460.0,0.00022465,4]
[366107886,1750067445603,-433.49486638,0.00022465,4]
[366107887,1750067445613,-508.38865541,0.00022465,4]
[366107888,1750067445623,-460.0,0.00022465,4]
[366107889,1750067445632,-460.0,0.00022465,4]
[366107890,1750067445641,-460.0,0.00022465,4]
[366107891,1750067445652,-151.0,0.00022465,7]
[366107892,1750067445662,-438.70470039,0.00022465,4]
[366107893,1750067445672,-460.0,0.00022465,4]
[366107894,1750067445681,-460.0,0.00022465,4]
[366107896,1750067445690,-460.0,0.00022465,4]
[366107898,1750067445701,-460.0,0.00022465,4]
[366107900,1750067445712,-460.0,0.00022465,4]
[366107901,1750067445722,-460.0,0.00022465,4]
[366107902,1750067445731,-460.0,0.00022465,4]
[366107903,1750067445741,-460.0,0.00022465,4]
[366107904,1750067445752,-460.0,0.00022465,4]
[366107905,1750067445762,-460.0,0.00022465,4]
[366107906,1750067445771,-460.0,0.00022465,4]
[366107907,1750067445781,-460.0,0.00022465,4]
[366107908,1750067445792,-460.0,0.00022465,4]
[366107910,1750067445802,-460.0,0.00022465,4]
[366107912,1750067445812,-571.19264051,0.00022465,4]
[366107914,1750067445821,-1112.77,0.00022465,4]
[366107916,1750067445830,-460.0,0.00022465,4]
[366107918,1750067445840,-460.0,0.00022465,4]
[366107920,1750067445849,-460.0,0.00022465,4]
[366107922,1750067445859,-159.13968174,0.00022465,4]
[366107924,1750067445868,-460.0,0.00022465,4]
[366107926,1750067445877,-460.0,0.00022465,4]
[366107928,1750067445887,-460.0,0.00022465,4]
[366107930,1750067445897,-460.0,0.00022465,4]
[366107932,1750067445906,-874.2,0.00022465,4]
[366107934,1750067445916,-460.0,0.00022465,4]
[366107936,1750067445925,-460.0,0.00022465,4]
[366107938,1750067445935,-460.0,0.00022465,4]
[366107940,1750067445945,-460.0,0.00022465,4]
[366107942,1750067445955,-526.20286316,0.00022465,4]
[366107944,1750067445965,-460.0,0.00022465,4]
[366107946,1750067445975,-460.0,0.00022465,4]
[366107948,1750067445985,-460.0,0.00022465,4]
[366107950,1750067445994,-650.5,0.00022465,4]
[366107952,1750067446004,-460.0,0.00022465,4]
[366107954,1750067446014,-451.87699738,0.00022465,4]
[366107956,1750067446023,-460.0,0.00022465,4]
[366107958,1750067446033,-293.389818,0.00022484,7]
[366107960,1750067446043,-293.389818,0.00022484,7]
[366107962,1750067446053,-809.93,0.00022484,7]
[366107965,1750067446063,-151.0,0.00022509,3]
[366107967,1750067446075,-151.0,0.00022509,3]
[366107969,1750067446084,-151.0,0.00022509,3]
[366107971,1750067446094,-151.0,0.00022509,3]
[366107972,1750067446103,-151.0,0.00022509,3]
[366107975,1750067446113,-151.0,0.00022509,3]
[366107977,1750067446123,-151.0,0.00022509,3]
[366107979,1750067446132,-151.0,0.00022509,3]
[366107982,1750067446142,-151.0,0.00022509,3]
[366107984,1750067446152,-151.0,0.00022509,3]
[366107986,1750067446163,-151.0,0.00022509,3]
[366107989,1750067446173,-160.01251104,0.00022509,3]
[366107991,1750067446184,-317.0,0.00022509,3]
[366107992,1750067446194,-317.0,0.00022509,3]
[366107995,1750067446204,-317.0,0.00022509,3]
[366107997,1750067446214,-172.6032237,0.00022509,3]
[366107998,1750067446224,-1000.0,0.00022521,2]
[366108001,1750067446235,-504.57279831,0.00022521,2]
[366108002,1750067446244,-500.0,0.00022521,2]
[366108004,1750067446254,-1000.0,0.00022521,2]
[366108007,1750067446264,-769.77043432,0.00022521,7]
[366108010,1750067446284,-1277.663851,0.00022521,2]
[366108012,1750067446301,-1211.255641,0.00022531,3]
[366108014,1750067446311,-572.5822941,0.00022575,2]
[366108016,1750067446321,-809.93,0.00022597,7]
[366108018,1750067446331,-160.0,0.000226,3]
[366108020,1750067446342,-845.4146947,0.000226,3]
[366108022,1750067446352,-198.349583,0.0002264,7]
[366108025,1750067446362,-198.349583,0.0002264,7]
[366108027,1750067446372,-809.93,0.00022709,7]
[366108029,1750067446382,-182.6124,0.00022724,7]
[366108031,1750067446392,-182.6124,0.00022724,7]
[366108033,1750067446402,-151.0,0.00022724,7]
[366108035,1750067446411,-182.6124,0.00022739,7]
[366108037,1750067446421,-182.6124,0.00022739,7]
[366108039,1750067446431,-471.12,0.00022739,4]
[366108041,1750067446440,-151.0,0.00022739,7]
[366108043,1750067446450,-192.965381,0.00022739,7]
[366108045,1750067446460,-561.54452998,0.00022739,4]
[366108047,1750067446470,-151.0,0.00022739,7]
[366108049,1750067446480,-170.232044,0.00022739,7]
[366108051,1750067446490,-460.0,0.00022739,4]
[366108053,1750067446500,-460.0,0.00022739,4]
[366108055,1750067446510,-460.0,0.00022739,4]
[366108057,1750067446520,-460.0,0.00022739,4]
[366108059,1750067446531,-460.0,0.00022739,2]
[366108062,1750067446544,-501.27,0.00022739,4]
[366108064,1750067446554,-460.0,0.00022739,4]
[366108066,1750067446564,-565.66,0.00022739,4]
[366108068,1750067446574,-460.0,0.00022739,4]
[366108070,1750067446584,-460.0,0.00022739,4]
[366108072,1750067446593,-460.0,0.00022739,4]
[366108074,1750067446603,-324.37400178,0.00022739,4]
[366108076,1750067446613,-253.88215436,0.00022739,4]
[366108078,1750067446623,-460.0,0.00022739,4]
[366108080,1750067446632,-440.0,0.00022739,4]
[366108082,1750067446641,-440.0,0.00022739,4]
[366108084,1750067446650,-460.0,0.00022739,4]
[366108086,1750067446660,-460.0,0.00022739,4]
[366108088,1750067446670,-397.40029213,0.00022739,4]
[366108090,1750067446679,-460.0,0.00022739,4]
[366108092,1750067446689,-460.0,0.00022739,4]
[366108094,1750067446699,-584.68548551,0.00022739,4]
[366108096,1750067446709,-460.0,0.00022739,4]
[366108098,1750067446720,-460.0,0.00022739,4]
[366108100,1750067446730,-590.65,0.00022739,2]
[366108102,1750067446740,-460.0,0.00022739,4]
[366108104,1750067446750,-460.0,0.00022739,4]
[366108106,1750067446759,-460.0,0.00022739,4]
[366108108,1750067446769,-445.65824319,0.00022739,4]
[366108110,1750067446779,-460.0,0.00022739,4]
[366108112,1750067446790,-200.755456,0.00022739,4]
[366108114,1750067446800,-32.26624191,0.00022739,4]
[366108117,1750067446816,-427.73375809,0.00022739,4]
[366108119,1750067446826,-1.83214647,0.00022739,4]
[366108121,1750067446838,-458.16785353,0.00022739,4]
[366108123,1750067446848,-460.0,0.00022739,4]
[366108126,1750067446858,-460.0,0.00022739,4]
[366108128,1750067446868,-460.0,0.00022739,4]
[366108130,1750067446878,-460.0,0.00022739,4]
[366108132,1750067446889,-460.0,0.00022739,4]
[366108134,1750067446902,-1171.34,0.00022739,4]
[366108136,1750067446912,-460.0,0.00022739,4]
[366108138,1750067446922,-460.0,0.00022739,4]
[366108140,1750067446932,-603.69933632,0.00022739,4]
[366108142,1750067446942,-460.0,0.00022739,4]
[366108144,1750067446951,-460.0,0.00022739,4]
[366108146,1750067446961,-302.81695842,0.00022739,4]
[366108148,1750067446971,-660.81,0.00022739,4]
[366108150,1750067446981,-977.33,0.00022739,4]
[366108152,1750067446991,-565.7532755,0.00022739,4]
[366108154,1750067447000,-760.03,0.00022739,4]
[366108156,1750067447010,-1108.41,0.00022739,4]
[366108158,1750067447020,-351.79190541,0.00022739,4]
[366108160,1750067447030,-460.0,0.00022739,4]
[366108163,1750067447042,-460.0,0.00022739,4]
[366108165,1750067447052,-460.0,0.00022739,4]
[366108167,1750067447062,-460.0,0.00022739,4]
[366108169,1750067447072,-460.0,0.00022739,4]
[366108171,1750067447085,-440.0,0.00022739,4]
[366108173,1750067447094,-460.0,0.00022739,4]
[366108175,1750067447104,-558.52,0.00022739,4]
[366108177,1750067447115,-460.0,0.00022739,4]
[366108179,1750067447124,-460.0,0.00022739,4]
[366108181,1750067447134,-460.0,0.00022739,4]
[366108183,1750067447143,-460.0,0.00022739,4]
[366108185,1750067447153,-460.0,0.00022739,4]
[366108187,1750067447163,-167.46870541,0.00022739,4]
[366108189,1750067447172,-460.0,0.00022739,4]
[366108191,1750067447182,-460.0,0.00022739,4]
[366108193,1750067447192,-490.54,0.00022739,4]
[366108195,1750067447202,-460.0,0.00022739,4]
[366108197,1750067447211,-293.389818,0.00022739,7]
[366108199,1750067447222,-151.0,0.00022739,7]
[366108201,1750067447231,-460.0,0.00022739,4]
[366108203,1750067447241,-293.389818,0.00022739,7]
[366108205,1750067447252,-460.0,0.00022739,4]
[366108207,1750067447262,-460.0,0.00022739,4]
[366108209,1750067447273,-460.0,0.00022739,4]
[366108211,1750067447282,-471.91536304,0.00022739,4]
[366108213,1750067447297,-460.0,0.00022739,4]
[366108227,1750067447424,-460.0,0.00022739,4]
[366108229,1750067447434,-460.0,0.00022739,4]
[366108232,1750067447444,-275.72868,0.00022739,7]
[366108234,1750067447454,-460.0,0.00022739,4]
[366108235,1750067447463,-460.0,0.00022739,4]
[366108238,1750067447473,-460.0,0.00022739,4]
[366108240,1750067447485,-460.0,0.00022739,4]
[366108242,1750067447495,-275.72868,0.00022739,7]
[366108244,1750067447505,-506.61,0.00022739,4]
[366108246,1750067447514,-460.0,0.00022739,4]
[366108248,1750067447524,-460.0,0.00022739,4]
[366108250,1750067447533,-460.0,0.00022739,4]
[366108252,1750067447547,-460.0,0.00022739,4]
[366108254,1750067447556,-460.0,0.00022739,4]
[366108256,1750067447566,-269.80600474,0.00022739,4]
[366108258,1750067447576,-460.0,0.00022739,4]
[366108260,1750067447587,-460.0,0.00022739,4]
[366108262,1750067447596,-460.0,0.00022739,4]
[366108264,1750067447605,-460.0,0.00022739,4]
[366108266,1750067447615,-460.0,0.00022739,4]
[366108268,1750067447624,-460.0,0.00022739,4]
[366108270,1750067447634,-460.0,0.00022739,4]
[366108272,1750067447643,-460.0,0.00022739,4]
[366108274,1750067447653,-229.83376739,0.00022739,4]
[366108276,1750067447662,-457.88122555,0.00022739,4]
[366108278,1750067447672,-460.0,0.00022739,4]
[366108280,1750067447683,-460.0,0.00022739,4]
[366108282,1750067447693,-151.0,0.00022739,7]
[366108284,1750067447703,-460.0,0.00022739,4]
[366108286,1750067447712,-460.0,0.00022739,4]
[366108288,1750067447722,-460.0,0.00022739,4]
[366108290,1750067447732,-460.0,0.00022739,4]
[366108292,1750067447741,-460.0,0.00022739,4]
[366108294,1750067447750,-460.0,0.00022739,4]
[366108296,1750067447760,-340.0,0.00022739,4]
[366108298,1750067447770,-460.0,0.00022739,4]
[366108300,1750067447779,-227.59448699,0.00022739,4]
[366108302,1750067447790,-460.60440768,0.00022739,4]
[366108304,1750067447800,-460.0,0.00022739,4]
[366108306,1750067447809,-460.0,0.00022739,4]
[366108308,1750067447819,-460.0,0.00022739,4]
[366108310,1750067447829,-1112.77,0.00022739,4]
[366108312,1750067447839,-460.0,0.00022739,4]
[366108314,1750067447850,-460.0,0.00022739,4]
[366108316,1750067447859,-156.92079353,0.00022739,4]
[366108318,1750067447869,-460.0,0.00022739,4]
[366108320,1750067447878,-460.0,0.00022739,4]
[366108322,1750067447888,-460.0,0.00022739,4]
[366108324,1750067447897,-874.2,0.00022739,4]
[366108326,1750067447907,-460.0,0.00022739,4]
[366108328,1750067447916,-460.0,0.00022739,4]
[366108329,1750067447926,-460.0,0.00022739,4]
[366108330,1750067447935,-460.0,0.00022739,4]
[366108331,1750067447945,-460.0,0.00022739,4]
[366108332,1750067447955,-460.0,0.00022739,4]
[366108333,1750067447964,-650.5,0.00022739,4]
[366108334,1750067447974,-526.34739096,0.00022739,4]
[366108335,1750067447983,-460.0,0.00022739,4]
[366108336,1750067447994,-769.77043432,0.00022762,7]
[366108337,1750067448005,-1277.66384273,0.000228,2]
[366108338,1750067448014,-151.0,0.000228,6]
[366108339,1750067448025,-809.93,0.00022821,7]
[366108340,1750067448035,-500.0,0.00022897,8]
[366108341,1750067448045,-151.0,0.000229,7]
[366108342,1750067448055,-151.0,0.000229,7]
[366108343,1750067448065,-809.93,0.00022934,7]
[366108344,1750067448077,-151.0,0.00022939,7]
[366108345,1750067448087,-201.205002,0.00022939,7]
[366108346,1750067448096,-198.349583,0.0002296,7]
[366108347,1750067448106,-198.349583,0.0002296,7]
[366108348,1750067448117,-275.72868,0.0002296,7]
[366108349,1750067448127,-275.728681,0.0002296,7]
[366108350,1750067448137,-212.48080632,0.00022973,2]
[366108351,1750067448146,-507.46660414,0.00022973,2]
[366108352,1750067448159,-500.0,0.00022973,2]
[366108353,1750067448168,-600.0,0.00022973,2]
[366108355,1750067448179,-88650.58369523,0.00023,14]
[366108357,1750067448189,-151.0,0.00023,7]
[366108359,1750067448199,-307316.0,0.00023,30]
[366108361,1750067448208,-3000.0,0.00023,2]
[366108363,1750067448218,-151.0,0.00023,7]
[366108365,1750067448227,-151.0,0.00023,7]
[366108367,1750067448237,-151.0,0.00023,7]
[366108369,1750067448247,-151.0,0.00023,7]
[366108371,1750067448257,-160.0,0.00023,3]
[366108373,1750067448267,-296.7,0.00023,2]
[366108375,1750067448277,-198.349583,0.00023,7]
[366108377,1750067448286,-198.34958,0.00023,7]
[366108380,1750067448297,-182.6124,0.00023,7]
[366108382,1750067448307,-182.6124,0.00023,7]
[366108384,1750067448316,-151.0,0.00023,7]
[366108386,1750067448327,-151.0,0.00023,7]
[366108387,1750067448336,-315.41727155,0.00023,30]
[366108390,1750067448347,-229.90125484,0.00023,3]
[366108391,1750067448356,-835.67987521,0.00023,3]
[366108393,1750067448366,-160.0,0.00023,3]
[366108395,1750067448375,-150.289652,0.00023,2]
[366108398,1750067448385,-293.389818,0.00023,7]
[366108400,1750067448395,-172.41249,0.00023,7]
[366108401,1750067448405,-293.38982,0.00023,7]
[366108404,1750067448415,-12537.89035583,0.00023,3]
[366108406,1750067448424,-213.36025772,0.00023,3]
[366108407,1750067448434,-160.0,0.00023,3]
[366108409,1750067448443,-424.54874296,0.00023,3]
[366108411,1750067448453,-769.77043432,0.00023003,8]
[366108413,1750067448462,-3000.0,0.0002301,2]
[366108415,1750067448472,-471.12,0.00023013,4]
[366108417,1750067448481,-469.86600201,0.00023013,4]
[366108420,1750067448491,-460.0,0.00023013,4]
[366108422,1750067448502,-460.0,0.00023013,4]
[366108424,1750067448511,-448.13687165,0.00023013,4]
[366108426,1750067448521,-460.0,0.00023013,2]
[366108428,1750067448531,-460.0,0.00023013,4]
[366108429,1750067448542,-405.9387443,0.00023013,4]
[366108431,1750067448552,-460.0,0.00023013,4]
[366108434,1750067448562,-460.0,0.00023013,4]
[366108435,1750067448572,-385.53498921,0.00023013,4]
[366108437,1750067448582,-230.4784662,0.00023013,4]
[366108439,1750067448591,-253.48584117,0.00023013,4]
[366108441,1750067448601,-460.0,0.00023013,4]
[366108443,1750067448610,-590.65,0.00023013,2]
[366108445,1750067448620,-460.0,0.00023013,4]
[366108447,1750067448630,-460.0,0.00023013,4]
[366108449,1750067448640,-301.495167,0.00023013,4]
[366108451,1750067448650,-460.0,0.00023013,4]
[366108453,1750067448659,-460.0,0.00023013,4]
[366108455,1750067448669,-460.0,0.00023013,4]
[366108457,1750067448679,-460.0,0.00023013,4]
[366108459,1750067448689,-460.0,0.00023013,4]
[366108461,1750067448699,-460.0,0.00023013,4]
[366108463,1750067448709,-460.0,0.00023013,4]
[366108465,1750067448719,-1171.34,0.00023013,4]
[366108467,1750067448730,-451.08750129,0.00023013,4]
[366108469,1750067448740,-460.0,0.00023013,4]
[366108471,1750067448750,-460.0,0.00023013,4]
[366108473,1750067448760,-460.0,0.00023013,4]
[366108475,1750067448770,-660.81,0.00023013,4]
[366108477,1750067448781,-977.33,0.00023013,4]
[366108479,1750067448792,-760.03,0.00023013,4]
[366108481,1750067448803,-1108.41,0.00023013,4]
[366108483,1750067448813,-460.0,0.00023013,4]
[366108485,1750067448822,-460.0,0.00023013,4]
[366108487,1750067448832,-460.0,0.00023013,4]
[366108489,1750067448842,-460.0,0.00023013,4]
[366108491,1750067448852,-460.0,0.00023013,4]
[366108493,1750067448862,-460.0,0.00023013,4]
[366108495,1750067448872,-558.52,0.00023013,4]
[366108497,1750067448883,-460.0,0.00023013,4]
[366108499,1750067448893,-314.40176849,0.00023013,4]
[366108501,1750067448904,-524.21,0.00023013,4]
[366108503,1750067448914,-460.0,0.00023013,4]
[366108505,1750067448924,-460.0,0.00023013,4]
[366108507,1750067448934,-460.0,0.00023013,4]
[366108509,1750067448944,-460.0,0.00023013,4]
[366108511,1750067448955,-490.54,0.00023013,4]
[366108513,1750067448965,-460.0,0.00023013,4]
[366108515,1750067448976,-460.0,0.00023013,4]
[366108517,1750067448986,-460.0,0.00023013,4]
[366108519,1750067448996,-460.0,0.00023013,4]
[366108521,1750067449006,-460.0,0.00023013,4]
[366108523,1750067449016,-460.0,0.00023013,4]
[366108524,1750067449027,-460.0,0.00023013,4]
[366108526,1750067449037,-511.1937004,0.00023013,4]
[366108528,1750067449049,-460.0,0.00023013,4]
[366108530,1750067449059,-460.0,0.00023013,4]
[366108533,1750067449070,-460.0,0.00023013,4]
[366108535,1750067449083,-460.0,0.00023013,4]
[366108537,1750067449093,-460.0,0.00023013,4]
[366108539,1750067449103,-460.0,0.00023013,4]
[366108541,1750067449112,-460.0,0.00023013,4]
[366108552,1750067449212,-460.0,0.00023013,4]
[366108554,1750067449223,-460.0,0.00023013,4]
[366108556,1750067449233,-460.0,0.00023013,4]
[366108558,1750067449242,-460.0,0.00023013,4]
[366108560,1750067449252,-460.0,0.00023013,4]
[366108562,1750067449262,-460.0,0.00023013,4]
[366108564,1750067449272,-460.0,0.00023013,4]
[366108566,1750067449281,-460.0,0.00023013,4]
[366108568,1750067449290,-460.0,0.00023013,4]
[366108569,1750067449300,-460.0,0.00023013,4]
[366108571,1750067449309,-460.0,0.00023013,4]
[366108573,1750067449319,-460.0,0.00023013,4]
[366108575,1750067449328,-460.0,0.00023013,4]
[366108577,1750067449338,-376.07208946,0.00023013,4]
[366108579,1750067449347,-460.0,0.00023013,4]
[366108581,1750067449357,-267.21,0.00023013,4]
[366108583,1750067449367,-400.00545505,0.00023013,4]
[366108585,1750067449376,-460.0,0.00023013,4]
[366108587,1750067449385,-460.0,0.00023013,4]
[366108589,1750067449396,-460.0,0.00023013,4]
[366108591,1750067449407,-216.36469587,0.00023013,4]
[366108593,1750067449416,-1112.77,0.00023013,4]
[366108595,1750067449426,-460.0,0.00023013,4]
[366108597,1750067449435,-460.0,0.00023013,4]
[366108599,1750067449445,-460.0,0.00023013,4]
[366108601,1750067449455,-460.0,0.00023013,4]
[366108603,1750067449464,-460.0,0.00023013,4]
[366108605,1750067449474,-874.2,0.00023013,4]
[366108607,1750067449483,-460.0,0.00023013,4]
[366108609,1750067449494,-460.0,0.00023013,4]
[366108611,1750067449503,-460.0,0.00023013,4]
[366108613,1750067449513,-460.0,0.00023013,4]
[366108615,1750067449523,-460.0,0.00023013,4]